fUSD/lending_fUSD_20240327
["ID","MTS","AMOUNT","RATE_DAILY","PERIOD"]
[320695199,1711501843141,-500.0,0.00055342,120]
[320695200,1711501843150,-500.0,0.00055342,120]
[320695202,1711501843160,-500.0,0.00055342,120]
[320695204,1711501843170,-500.0,0.00055342,120]
[320695205,1711501843180,-220.57,0.00055342,120]
[320695208,1711501843190,-1247.4,0.00055342,120]
[320695210,1711501843200,-2399.49,0.00055342,120]
[320695212,1711501843210,-500.0,0.00055342,120]
[320695213,1711501843220,-500.0,0.00055342,120]
[320695214,1711501843229,-500.0,0.00055342,120]
[320695215,1711501843238,-1567.57,0.00055342,120]
[320695216,1711501843249,-772.51,0.00055342,120]
[320695217,1711501843258,-500.0,0.00055342,120]
[320695218,1711501843267,-500.0,0.00055342,120]
[320695219,1711501843276,-500.0,0.00055342,120]
[320695220,1711501843286,-507.68,0.00055342,120]
[320695221,1711501843296,-500.0,0.00055342,120]
[320695222,1711501843305,-500.0,0.00055342,120]
[320695223,1711501843315,-500.0,0.00055342,120]
[320695224,1711501843324,-151.032709,0.00055498,108]
[320695225,1711501843334,-160.0,0.00055588,120]
[320695226,1711501843343,-760.0,0.00055763,120]
[320695227,1711501843353,-5678.19865851,0.00055777,33]
[320695228,1711501843362,-153.76,0.0005589,120]
[320695229,1711501843372,-500.0,0.0005589,120]
[320695230,1711501843381,-500.0,0.0005589,120]
[320695231,1711501843391,-500.0,0.0005589,120]
[320695232,1711501843400,-500.0,0.0005589,120]
[320695233,1711501843410,-500.0,0.0005589,120]
[320695234,1711501843418,-390.64,0.0005589,120]
[320695235,1711501843428,-1000.0,0.0005589,120]
[320695236,1711501843437,-500.0,0.0005589,120]
[320695237,1711501843446,-500.0,0.0005589,120]
[320695238,1711501843456,-500.0,0.0005589,120]
[320695239,1711501843465,-500.0,0.0005589,120]
[320695240,1711501843474,-500.0,0.0005589,120]
[320695241,1711501843484,-500.0,0.0005589,120]
[320695242,1711501843494,-500.0,0.0005589,120]
[320695243,1711501843504,-500.0,0.0005589,120]
[320695244,1711501843513,-500.0,0.0005589,120]
[320695245,1711501843523,-500.0,0.0005589,120]
[320695246,1711501843532,-500.0,0.0005589,120]
[320695247,1711501843541,-500.0,0.0005589,120]
[320695248,1711501843551,-1696.5,0.0005589,120]
[320695249,1711501843561,-5575.76,0.0005589,120]
[320695250,1711501843570,-521.5,0.0005589,120]
[320695251,1711501843579,-500.0,0.0005589,120]
[320695252,1711501843589,-500.0,0.0005589,120]
[320695253,1711501843598,-500.0,0.0005589,120]
[320695254,1711501843608,-380.19059947,0.0005589,120]
[320695255,1711501843618,-500.0,0.0005589,120]
[320695256,1711501843628,-1025.67,0.0005589,120]
[320695257,1711501843637,-500.0,0.0005589,120]
[320695258,1711501843646,-500.0,0.0005589,120]
[320695259,1711501843656,-500.0,0.0005589,120]
[320695260,1711501843665,-500.0,0.0005589,120]
[320695261,1711501843675,-1247.4,0.0005589,120]
[320695262,1711501843684,-2399.49,0.0005589,120]
[320695263,1711501843693,-500.0,0.0005589,120]
[320695264,1711501843702,-598.63155681,0.0005589,120]
[320695265,1711501843712,-500.0,0.0005589,120]
[320695266,1711501843722,-1567.57,0.0005589,120]
[320695267,1711501843732,-772.51,0.0005589,120]
[320695269,1711501843741,-500.0,0.0005589,120]
[320695271,1711501843751,-500.0,0.0005589,120]
[320695273,1711501843761,-500.0,0.0005589,120]
[320695275,1711501843771,-500.0,0.0005589,120]
[320695277,1711501843781,-565.98,0.0005589,120]
[320695279,1711501843790,-304.18861463,0.00055969,2]
[320695281,1711501843799,-156.25879952,0.00055982,120]
[320695283,1711501843809,-152.15569369,0.0005608,120]
[320695285,1711501843818,-584.69165199,0.00056164,60]
[320695287,1711501843828,-160.82877477,0.00056429,120]
[320695289,1711501843837,-434.54,0.00056438,120]
[320695291,1711501843846,-500.0,0.00056438,120]
[320695294,1711501843856,-597.75,0.00056438,120]
[320695297,1711501843865,-273.80288429,0.00056438,120]
[320695300,1711501843875,-500.0,0.00056438,120]
[320695302,1711501843884,-1000.0,0.00056438,120]
[320695304,1711501843894,-500.0,0.00056438,120]
[320695306,1711501843903,-500.0,0.00056438,120]
[320695308,1711501843912,-500.0,0.00056438,120]
[320695309,1711501843921,-500.0,0.00056438,120]
[320695310,1711501843930,-500.0,0.00056438,120]
[320695311,1711501843939,-500.0,0.00056438,120]
[320695312,1711501843948,-500.0,0.00056438,120]
[320695313,1711501843957,-500.0,0.00056438,120]
[320695314,1711501843966,-500.0,0.00056438,120]
[320695315,1711501843975,-299.37829599,0.00056438,120]
[320695316,1711501843984,-500.0,0.00056438,120]
[320695317,1711501843994,-1696.5,0.00056438,120]
[320695318,1711501844003,-5575.76,0.00056438,120]
[320695319,1711501844012,-500.0,0.00056438,120]
[320695320,1711501844021,-500.0,0.00056438,120]
[320695321,1711501844030,-500.0,0.00056438,120]
[320695322,1711501844039,-500.0,0.00056438,120]
[320695323,1711501844048,-1025.67,0.00056438,120]
[320695324,1711501844057,-204.36808346,0.00056438,120]
[320695325,1711501844075,-295.63191654,0.00056438,120]
[320695326,1711501844085,-500.0,0.00056438,120]
[320695327,1711501844094,-58.10736148,0.00056438,120]
[320695328,1711501844105,-305.92029292,0.00056438,120]
[320695329,1711501844116,-135.9723456,0.00056438,120]
[320695330,1711501844130,-339.60403535,0.00056438,120]
[320695331,1711501844141,-43.20596465,0.00056438,120]
[320695332,1711501844150,-1247.4,0.00056438,120]
[320695333,1711501844159,-2399.49,0.00056438,120]
[320695334,1711501844169,-500.0,0.00056438,120]
[320695335,1711501844179,-500.0,0.00056438,120]
[320695336,1711501844189,-1246.10403535,0.00056438,120]
[320695337,1711501844232,-0.00407567,0.00056438,120]
[320695338,1711501844248,-321.46188898,0.00056438,120]
[320695339,1711501844258,-772.51,0.00056438,120]
[320695340,1711501844267,-500.0,0.00056438,120]
[320695341,1711501844276,-500.0,0.00056438,120]
[320695342,1711501844287,-500.0,0.00056438,120]
[320695343,1711501844297,-500.0,0.00056438,120]
[320695344,1711501844306,-151.032709,0.00056498,110]
[320695345,1711501844316,-874.19430471,0.0005657,30]
[320695346,1711501844402,-513.0,0.00053699,120]
[320695347,1711501844413,-152.92531096,0.00054794,120]
[320695348,1711501844422,-500.0,0.00054794,120]
[320695349,1711501844432,-333.80569529,0.0005657,30]
[320695350,1711501844441,-150.0,0.00056799,120]
[320695351,1711501844450,-299.55437375,0.000568,30]
[320695352,1711501844462,-821.73841821,0.000568,30]
[320695353,1711501844474,-11128.49786161,0.000568,30]
[320695354,1711501844485,-2163.78631043,0.000568,30]
[320695355,1711501844497,-4853.22368952,0.000568,30]
[320695356,1711501844509,-276.93,0.000568,30]
[320695357,1711501844520,-542.72999998,0.000568,30]
[320695358,1711501844532,-1434.20661727,0.000568,30]
[320695359,1711501844896,-1035.80257066,0.000568,30]
[320695360,1711501844914,-6001.09210075,0.000568,30]
[320695361,1711501844925,-7085.95688103,0.000568,30]
[320695362,1711501844938,-897.23864383,0.000568,30]
[320695363,1711501844950,-1511.53845596,0.000568,30]
[320695364,1711501844960,-23638.718959,0.000568,30]
[320695365,1711501844969,-23638.718959,0.000568,30]
[320695366,1711501844978,-6542.06341604,0.000568,30]
[320695367,1711501844995,-513.0,0.0005411,120]
[320695368,1711501845006,-923.09972934,0.000568,30]
[320695369,1711501845017,-634.968,0.000568,30]
[320695370,1711501845029,-392.34412489,0.000568,30]
[320695371,1711501845130,-1705.85317958,0.00040228,2]
[320695372,1711501845139,-500.0,0.00054794,120]
[320695373,1711501845149,-500.0,0.00054794,120]
[320695374,1711501845158,-15146.24368873,0.000568,30]
[320695375,1711501845167,-23638.718959,0.000568,30]
[320695376,1711501845176,-23638.718959,0.000568,30]
[320695377,1711501845184,-23638.718959,0.000568,30]
[320695378,1711501845194,-23638.718959,0.000568,30]
[320695379,1711501845204,-23638.718959,0.000568,30]
[320695380,1711501845213,-23638.718959,0.000568,30]
[320695381,1711501845222,-23638.718959,0.000568,30]
[320695382,1711501845231,-23638.718959,0.000568,30]
[320695383,1711501845240,-500.0,0.00056986,120]
[320695384,1711501845250,-500.0,0.00056986,120]
[320695385,1711501845259,-1000.0,0.00056986,120]
[320695386,1711501845268,-500.0,0.00056986,120]
[320695387,1711501845277,-500.0,0.00056986,120]
[320695388,1711501845286,-500.0,0.00056986,120]
[320695389,1711501845296,-500.0,0.00056986,120]
[320695390,1711501845305,-500.0,0.00056986,120]
[320695391,1711501845313,-500.0,0.00056986,120]
[320695392,1711501845322,-500.0,0.00056986,120]
[320695393,1711501845331,-500.0,0.00056986,120]
[320695394,1711501845340,-500.0,0.00056986,120]
[320695395,1711501845349,-1696.5,0.00056986,120]
[320695396,1711501845358,-5575.76,0.00056986,120]
[320695397,1711501845367,-500.0,0.00056986,120]
[320695398,1711501845376,-500.0,0.00056986,120]
[320695399,1711501845385,-180.94452267,0.00056986,120]
[320695400,1711501845394,-500.0,0.00056986,120]
[320695401,1711501845403,-1025.67,0.00056986,120]
[320695402,1711501845412,-500.0,0.00056986,120]
[320695403,1711501845421,-500.0,0.00056986,120]
[320695404,1711501845430,-500.0,0.00056986,120]
[320695405,1711501845439,-1247.4,0.00056986,120]
[320695406,1711501845448,-2399.49,0.00056986,120]
[320695407,1711501845457,-500.0,0.00056986,120]
[320695408,1711501845466,-500.0,0.00056986,120]
[320695409,1711501845475,-1567.57,0.00056986,120]
[320695410,1711501845484,-772.51,0.00056986,120]
[320695411,1711501845494,-500.0,0.00056986,120]
[320695412,1711501845502,-500.0,0.00056986,120]
[320695413,1711501845512,-215.80718714,0.00056986,120]
[320695414,1711501845522,-413.66,0.00056994,2]
[320695415,1711501845531,-154.57469598,0.00057094,120]
[320695416,1711501845541,-1000.0,0.000572,7]
[320695417,1711501845550,-163.43189591,0.00057244,120]
[320695418,1711501845560,-800.0,0.00057383,120]
[320695419,1711501845569,-152.15569369,0.00057383,120]
[320695420,1711501845578,-151.032709,0.00057498,112]
[320695421,1711501845588,-500.0,0.00057534,120]
[320695422,1711501845597,-500.0,0.00057534,120]
[320695423,1711501845607,-1000.0,0.00057534,120]
[320695424,1711501845617,-500.0,0.00057534,120]
[320695425,1711501845626,-500.0,0.00057534,120]
[320695426,1711501845635,-500.0,0.00057534,120]
[320695427,1711501845644,-500.0,0.00057534,120]
[320695428,1711501845653,-500.0,0.00057534,120]
[320695429,1711501845662,-500.0,0.00057534,120]
[320695430,1711501845671,-500.0,0.00057534,120]
[320695431,1711501845681,-1696.5,0.00057534,120]
[320695432,1711501845690,-5575.76,0.00057534,120]
[320695433,1711501845699,-500.0,0.00057534,120]
[320695434,1711501845708,-500.0,0.00057534,120]
[320695435,1711501845717,-500.0,0.00057534,120]
[320695436,1711501845726,-1025.67,0.00057534,120]
[320695437,1711501845735,-500.0,0.00057534,120]
[320695438,1711501845746,-500.0,0.00057534,120]
[320695439,1711501845755,-500.0,0.00057534,120]
[320695440,1711501845765,-1247.4,0.00057534,120]
[320695441,1711501845774,-2399.49,0.00057534,120]
[320695442,1711501845784,-500.0,0.00057534,120]
[320695443,1711501845794,-500.0,0.00057534,120]
[320695444,1711501845803,-1567.57,0.00057534,120]
[320695445,1711501845814,-772.51,0.00057534,120]
[320695446,1711501845823,-500.0,0.00057534,120]
[320695447,1711501845834,-500.0,0.00057534,120]
[320695448,1711501845845,-419.67657927,0.0005755,57]
[320695449,1711501845854,-150.0,0.00057582,120]
[320695450,1711501845864,-5469.59172294,0.0005765,2]
[320695451,1711501845875,-264.0,0.00057778,30]
[320695452,1711501845884,-1000.0,0.000579,7]
[320695453,1711501845895,-159.43929157,0.00057976,120]
[320695454,1711501845904,-304.18861463,0.00058075,2]
[320695455,1711501845914,-500.0,0.00058082,120]
[320695456,1711501845923,-500.0,0.00058082,120]
[320695457,1711501845934,-491.79336837,0.00058082,120]
[320695458,1711501845943,-500.0,0.00058082,120]
[320695459,1711501845952,-500.0,0.00058082,120]
[320695460,1711501845961,-500.0,0.00058082,120]
[320695461,1711501845971,-152.7,0.00058082,120]
[320695463,1711501845980,-612.59,0.00058082,120]
[320695465,1711501845989,-500.0,0.00058082,120]
[320695467,1711501846001,-617.1,0.00058082,120]
[320695469,1711501846010,-1696.5,0.00058082,120]
[320695472,1711501846022,-5575.76,0.00058082,120]
[320695474,1711501846031,-500.0,0.00058082,120]
[320695476,1711501846041,-500.0,0.00058082,120]
[320695477,1711501846051,-500.0,0.00058082,120]
[320695479,1711501846061,-1025.67,0.00058082,120]
[320695480,1711501846070,-500.0,0.00058082,120]
[320695481,1711501846079,-500.0,0.00058082,120]
[320695482,1711501846088,-500.0,0.00058082,120]
[320695483,1711501846097,-1247.4,0.00058082,120]
[320695484,1711501846106,-2399.49,0.00058082,120]
[320695485,1711501846115,-500.0,0.00058082,120]
[320695486,1711501846129,-500.0,0.00058082,120]
[320695487,1711501846138,-1567.57,0.00058082,120]
[320695488,1711501846149,-772.51,0.00058082,120]
[320695489,1711501846159,-500.0,0.00058082,120]
[320695490,1711501846169,-500.0,0.00058082,120]
[320695491,1711501846179,-200.0,0.00058127,120]
[320695492,1711501846188,-152.15569369,0.00058156,120]
[320695493,1711501846198,-264.0,0.00058373,30]
[320695494,1711501846208,-403.84731049,0.00058414,14]
[320695495,1711501846218,-154.57469602,0.00058455,120]
[320695496,1711501846228,-5678.19865851,0.00058458,37]
[320695497,1711501846238,-151.032709,0.00058498,114]
[320695498,1711501846250,-152.59774796,0.00058594,120]
[320695499,1711501846259,-500.0,0.0005863,120]
[320695500,1711501846269,-500.0,0.0005863,120]
[320695501,1711501846278,-500.0,0.0005863,120]
[320695502,1711501846287,-500.0,0.0005863,120]
[320695503,1711501846297,-300.009801,0.0005863,120]
[320695504,1711501846309,-500.0,0.0005863,120]
[320695505,1711501846319,-1696.5,0.0005863,120]
[320695506,1711501846328,-5575.76,0.0005863,120]
[320695507,1711501846338,-301.59242275,0.0005863,120]
[320695508,1711501846347,-500.0,0.0005863,120]
[320695509,1711501846356,-500.0,0.0005863,120]
[320695510,1711501846368,-1025.67,0.0005863,120]
[320695511,1711501846378,-500.0,0.0005863,120]
[320695512,1711501846387,-500.0,0.0005863,120]
[320695513,1711501846397,-500.0,0.0005863,120]
[320695514,1711501846406,-1247.4,0.0005863,120]
[320695515,1711501846417,-2399.49,0.0005863,120]
[320695516,1711501846426,-500.0,0.0005863,120]
[320695517,1711501846436,-500.0,0.0005863,120]
[320695518,1711501846446,-1567.57,0.0005863,120]
[320695519,1711501846455,-772.51,0.0005863,120]
[320695520,1711501846466,-500.0,0.0005863,120]
[320695521,1711501846476,-500.0,0.0005863,120]
[320695522,1711501846486,-159.43929157,0.00058757,120]
[320695523,1711501846498,-162.21511489,0.00058791,120]
[320695524,1711501846509,-154.86370851,0.00058868,120]
[320695525,1711501846520,-194.0,0.00058944,28]
[320695526,1711501846530,-264.0,0.00058969,30]
[320695527,1711501846539,-154.86370854,0.0005899,120]
[320695528,1711501846549,-150.0,0.00059,100]
[320695529,1711501846558,-159.43929157,0.00059051,120]
[320695530,1711501846571,-160.0,0.00059079,120]
[320695531,1711501846580,-151.7768786,0.00059128,79]
[320695532,1711501846590,-158.70427819,0.00059171,120]
[320695533,1711501846600,-490.33857357,0.00059178,120]
[320695534,1711501846609,-500.0,0.00059178,120]
[320695535,1711501846619,-500.0,0.00059178,120]
[320695536,1711501846629,-500.0,0.00059178,120]
[320695537,1711501846639,-162.21511492,0.00059178,120]
[320695538,1711501846649,-500.0,0.00059178,120]
[320695539,1711501846658,-1696.5,0.00059178,120]
[320695540,1711501846668,-5575.76,0.00059178,120]
[320695541,1711501846677,-500.0,0.00059178,120]
[320695542,1711501846687,-500.0,0.00059178,120]
[320695543,1711501846697,-1025.67,0.00059178,120]
[320695544,1711501846706,-500.0,0.00059178,120]
[320695545,1711501846716,-500.0,0.00059178,120]
[320695546,1711501846726,-500.0,0.00059178,120]
[320695547,1711501846735,-1247.4,0.00059178,120]
[320695548,1711501846746,-2399.49,0.00059178,120]
[320695549,1711501846756,-500.0,0.00059178,120]
[320695550,1711501846767,-500.0,0.00059178,120]
[320695551,1711501846778,-1567.57,0.00059178,120]
[320695552,1711501846788,-772.51,0.00059178,120]
[320695553,1711501846797,-500.0,0.00059178,120]
[320695554,1711501846809,-500.0,0.00059178,120]
[320695555,1711501846820,-152.15569369,0.00059203,120]
[320695556,1711501846830,-989.0,0.00059222,25]
[320695557,1711501846841,-4754.0,0.00059232,120]
[320695558,1711501846851,-2443.0,0.00059232,120]
[320695559,1711501846861,-26277.566,0.00059232,120]
[320695560,1711501846873,-413.66,0.00059258,2]
[320695561,1711501846883,-160.82877485,0.00059283,120]
[320695562,1711501846894,-1000.0,0.000593,7]
[320695563,1711501846906,-159.43929164,0.00059357,120]
[320695564,1711501846918,-167.3073987,0.00059359,120]
[320695565,1711501846930,-167.3073987,0.00059359,120]
[320695566,1711501846940,-296.92163089,0.00059398,120]
[320695567,1711501846950,-2584.49304,0.000594,94]
[320695568,1711501846961,-1005.86,0.000594,2]
[320695569,1711501846970,-153.98,0.000594,9]
[320695570,1711501846980,-153.98,0.000594,9]
[320695571,1711501846990,-153.98,0.000594,9]
[320695572,1711501847001,-153.98,0.000594,9]
[320695573,1711501847010,-151.032709,0.00059498,116]
[320695574,1711501847021,-150.0,0.000595,101]
[320695575,1711501847031,-790.64290462,0.00059517,2]
[320695576,1711501847040,-152.0,0.00059542,3]
[320695577,1711501847051,-264.0,0.00059565,30]
[320695578,1711501847061,-2584.49305,0.0005957,94]
[320695579,1711501847070,-152.15569369,0.00059703,120]
[320695580,1711501847080,-500.0,0.00059726,120]
[320695581,1711501847090,-397.94611007,0.00059726,120]
[320695582,1711501847100,-500.0,0.00059726,120]
[320695583,1711501847109,-500.0,0.00059726,120]
[320695584,1711501847123,-1696.5,0.00059726,120]
[320695585,1711501847133,-5575.76,0.00059726,120]
[320695586,1711501847143,-500.0,0.00059726,120]
[320695588,1711501847153,-500.0,0.00059726,120]
[320695590,1711501847163,-1025.67,0.00059726,120]
[320695591,1711501847172,-500.0,0.00059726,120]
[320695592,1711501847182,-500.0,0.00059726,120]
[320695593,1711501847192,-500.0,0.00059726,120]
[320695594,1711501847202,-1247.4,0.00059726,120]
[320695595,1711501847212,-2399.49,0.00059726,120]
[320695596,1711501847221,-500.0,0.00059726,120]
[320695597,1711501847230,-500.0,0.00059726,120]
[320695598,1711501847240,-1567.57,0.00059726,120]
[320695599,1711501847251,-772.51,0.00059726,120]
[320695600,1711501847260,-500.0,0.00059726,120]
[320695601,1711501847270,-500.0,0.00059726,120]
[320695602,1711501847279,-150.0,0.00059736,14]
[320695603,1711501847289,-1336.32845968,0.000598,120]
[320695604,1711501847299,-1500.0,0.00059813,14]
[320695605,1711501847309,-150.0,0.00059899,120]
[320695606,1711501847318,-150.0,0.00059899,120]
[320695607,1711501847328,-150.0,0.00059899,120]
[320695608,1711501847337,-151.86884821,0.00059899,120]
[320695609,1711501847347,-150.0,0.00059899,120]
[320695610,1711501847357,-151.725298,0.00059899,120]
[320695611,1711501847366,-150.0,0.00059899,120]
[320695612,1711501847376,-150.0,0.000599,26]
[320695613,1711501847385,-150.0,0.000599,26]
[320695614,1711501847405,-200.0,0.00059983,120]
[320695615,1711501847415,-800.0,0.00059983,120]
[320695616,1711501847426,-500.0,0.00059983,120]
[320695617,1711501847436,-200.0,0.00059983,120]
[320695618,1711501847446,-1537.3032676,0.0005999,2]
[320695619,1711501847456,-926.7590033,0.0005999,2]
[320695620,1711501847466,-200.2650422,0.0005999,2]
[320695621,1711501847475,-26505.3086206,0.0005999,2]
[320695622,1711501847486,-32820.4730483,0.0005999,2]
[320695623,1711501847497,-315.14096013,0.00059999,120]
[320695624,1711501847508,-81456.62537717,0.0006,60]
[320695625,1711501847518,-1540.23265841,0.0006,120]
[320695626,1711501847528,-657.82910587,0.0006,120]
[320695627,1711501847539,-479.0,0.0006,50]
[320695628,1711501847550,-5000.0,0.0006,20]
[320695629,1711501847560,-575.14887138,0.0006,90]
[320695630,1711501847570,-155.0,0.0006,120]
[320695631,1711501847580,-3903.43449612,0.0006,101]
[320695632,1711501847590,-14787.40840592,0.0006,101]
[320695633,1711501847600,-479.0,0.0006,50]
[320695634,1711501847611,-2000.0,0.0006,30]
[320695635,1711501847621,-200.0,0.0006,30]
[320695636,1711501847630,-1000.0,0.0006,60]
[320695637,1711501847640,-1000.0,0.0006,60]
[320695638,1711501847650,-1000.0,0.0006,60]
[320695639,1711501847659,-1000.0,0.0006,60]
[320695640,1711501847669,-1000.0,0.0006,60]
[320695641,1711501847678,-2000.0,0.0006,30]
[320695642,1711501847688,-200.0,0.0006,30]
[320695643,1711501847697,-301.4475,0.0006,7]
[320695644,1711501847707,-150.0,0.0006,102]
[320695645,1711501847716,-390.257099,0.0006,40]
[320695646,1711501847726,-150.0,0.00060017,120]
[320695647,1711501847735,-790.64290463,0.00060029,2]
[320695648,1711501847747,-240.0,0.00060031,120]
[320695649,1711501847757,-8701.3786338,0.00060037,2]
[320695650,1711501847766,-150.0,0.00060136,120]
[320695651,1711501847776,-150.0,0.00060136,120]
[320695652,1711501847786,-264.0,0.0006016,30]
[320695653,1711501847796,-1309.58877861,0.00060167,2]
[320695654,1711501847807,-304.18861463,0.00060181,2]
[320695655,1711501847818,-194.0,0.00060198,28]
[320695656,1711501847829,-151.032707,0.00060198,118]
[320695657,1711501847839,-2584.49304,0.000602,97]
[320695658,1711501847848,-150.0,0.00060255,120]
[320695659,1711501847858,-500.0,0.00060273,120]
[320695660,1711501847868,-500.0,0.00060273,120]
[320695661,1711501847879,-500.0,0.00060273,120]
[320695662,1711501847890,-5575.76,0.00060273,120]
[320695663,1711501847901,-1696.5,0.00060273,120]
[320695664,1711501847911,-313.630808,0.00060273,120]
[320695665,1711501847923,-500.0,0.00060273,120]
[320695666,1711501847933,-1025.67,0.00060273,120]
[320695667,1711501847943,-500.0,0.00060273,120]
[320695668,1711501847953,-500.0,0.00060273,120]
[320695669,1711501847964,-261.89828682,0.00060273,120]
[320695670,1711501847975,-1247.4,0.00060273,120]
[320695671,1711501847986,-2399.49,0.00060273,120]
[320695672,1711501847998,-500.0,0.00060273,120]
[320695673,1711501848010,-500.0,0.00060273,120]
[320695674,1711501848021,-1567.57,0.00060273,120]
[320695675,1711501848031,-772.51,0.00060273,120]
[320695676,1711501848042,-500.0,0.00060273,120]
[320695677,1711501848053,-500.0,0.00060273,120]
[320695678,1711501848063,-717.16064709,0.00060274,120]
[320695679,1711501848324,-2053.80324061,0.00060274,120]
[320695680,1711501848336,-259.6061123,0.00060274,120]
[320695681,1711501848345,-150.0,0.00060342,120]
[320695682,1711501848355,-150.5,0.0006037,15]
[320695683,1711501848364,-150.0,0.00060374,120]
[320695684,1711501848373,-150.0,0.00060374,120]
[320695685,1711501848386,-150.5,0.0006038,15]
[320695686,1711501848395,-150.5,0.0006039,15]
[320695687,1711501848405,-150.0,0.00060493,120]
[320695688,1711501848414,-278.17,0.00060495,30]
[320695689,1711501848423,-151.032707,0.00060498,118]
[320695690,1711501848432,-29758.40047152,0.000605,120]
[320695691,1711501848497,-49.38126967,0.000605,120]
[320695692,1711501848514,-436.08908827,0.000605,120]
[320695693,1711501848526,-3516.6957851,0.000605,120]
[320695694,1711501848537,-3993.35221445,0.000605,120]
[320695695,1711501848556,-6772.5722771,0.000605,120]
[320695696,1711501848567,-1678.96578805,0.000605,120]
[320695697,1711501848617,-857.84317213,0.000605,120]
[320695698,1711501848631,-983.454,0.000605,120]
[320695699,1711501848642,-567.26979427,0.000605,120]
[320695700,1711501848654,-92336.2406759,0.000605,120]
[320695701,1711501848663,-150.0,0.000605,103]
[320695702,1711501848673,-2000.0,0.000606,30]
[320695703,1711501848685,-200.0,0.000606,30]
[320695704,1711501848695,-150.0,0.00060612,120]
[320695705,1711501848704,-150.0,0.00060612,120]
[320695706,1711501848713,-240.0,0.000607,120]
[320695707,1711501848722,-150.0,0.00060731,120]
[320695708,1711501848731,-264.0,0.00060756,30]
[320695709,1711501848741,-150.0,0.00060786,120]
[320695710,1711501848751,-500.0,0.00060821,120]
[320695711,1711501848761,-500.0,0.00060821,120]
[320695712,1711501848771,-500.0,0.00060821,120]
[320695713,1711501848780,-5575.76,0.00060821,120]
[320695714,1711501848789,-1696.5,0.00060821,120]
[320695715,1711501848799,-500.0,0.00060821,120]
[320695716,1711501848808,-1025.67,0.00060821,120]
[320695717,1711501848817,-500.0,0.00060821,120]
[320695718,1711501848826,-500.0,0.00060821,120]
[320695719,1711501848835,-1247.4,0.00060821,120]
[320695720,1711501848844,-2399.49,0.00060821,120]
[320695721,1711501848853,-500.0,0.00060821,120]
[320695722,1711501848862,-500.0,0.00060821,120]
[320695723,1711501848872,-1567.57,0.00060821,120]
[320695724,1711501848881,-772.51,0.00060821,120]
[320695725,1711501848890,-500.0,0.00060821,120]
[320695726,1711501848900,-500.0,0.00060821,120]
[320695727,1711501848909,-2584.49305,0.0006083,100]
[320695728,1711501848918,-150.0,0.00060849,120]
[320695729,1711501848927,-150.0,0.00060849,120]
[320695730,1711501848936,-150.0,0.00060849,120]
[320695731,1711501848945,-250.0,0.000609,26]
[320695732,1711501848954,-250.0,0.000609,26]
[320695733,1711501848965,-150.0,0.00060968,120]
[320695734,1711501848974,-300.0,0.00061,61]
[320695735,1711501848983,-150.0,0.00061,104]
[320695736,1711501848992,-150.0,0.00061087,120]
[320695737,1711501849002,-150.0,0.00061087,120]